[Event "Top 12 Féminin 2026"]
[Site "Asnières-sur-Seine, France"]
[Date "2026.05.15"]
[Round "3.14"]
[White "Aubert, Estee"]
[Black "Leriche, Ines"]
[Result "0-1"]
[TimeControl "1h30 / 40 moves + 30m + 30sec/move"]
[WhiteTitle "-"]
[BlackTitle "-"]
[WhiteFideId "-"]
[BlackFideId "-"]
[WhiteElo "1974"]
[BlackElo "1918"]

1. d4 {[%clk 01:30:57]} {[%emt 00:00:02]} d5 {[%clk 01:21:56]} {[%emt
00:09:04]} 2. Bf4 {[%clk 01:31:22]} {[%emt 00:00:05]} c5 {[%clk 01:22:07]}
{[%emt 00:00:19]} 3. e3 {[%clk 01:31:18]} {[%emt 00:00:34]} cxd4 {[%clk
01:22:27]} {[%emt 00:00:09]} 4. exd4 {[%clk 01:31:40]} {[%emt 00:00:08]} Nc6
{[%clk 01:22:49]} {[%emt 00:00:08]} 5. Nc3 {[%clk 01:31:22]} {[%emt 00:00:49]}
a6 {[%clk 01:12:25]} {[%emt 00:10:54]} 6. Nf3 {[%clk 01:29:14]} {[%emt
00:02:38]} e6 {[%clk 01:06:03]} {[%emt 00:06:52]} 7. a3 {[%clk 01:29:33]}
{[%emt 00:00:11]} Bd6 {[%clk 01:05:54]} {[%emt 00:00:38]} 8. Bg3 {[%clk
01:20:58]} {[%emt 00:09:05]} Nge7 {[%clk 01:02:25]} {[%emt 00:03:59]} 9. Bd3
{[%clk 01:18:42]} {[%emt 00:02:47]} O-O {[%clk 01:01:05]} {[%emt 00:01:50]} 10.
Bxh7+ {[%clk 00:38:55]} {[%emt 00:40:18]} Kxh7 {[%clk 01:01:12]} {[%emt
00:00:23]} 11. Ng5+ {[%clk 00:39:22]} {[%emt 00:00:03]} Kg6 {[%clk 01:01:19]}
{[%emt 00:00:23]} 12. h4 {[%clk 00:38:58]} {[%emt 00:00:54]} f5 {[%clk
00:34:42]} {[%emt 00:27:07]} 13. Ne2 {[%clk 00:22:12]} {[%emt 00:17:16]} Qc7
{[%clk 00:15:50]} {[%emt 00:19:22]} 14. Bxd6 {[%clk 00:13:16]} {[%emt
00:09:25]} Qxd6 {[%clk 00:16:03]} {[%emt 00:00:17]} 15. Qd3 {[%clk 00:08:44]}
{[%emt 00:05:03]} e5 {[%clk 00:10:19]} {[%emt 00:06:14]} 16. dxe5 {[%clk
00:08:36]} {[%emt 00:00:38]} Nxe5 {[%clk 00:09:30]} {[%emt 00:01:18]} 17. Qe3
{[%clk 00:03:03]} {[%emt 00:06:04]} Ng4 {[%clk 00:07:20]} {[%emt 00:02:40]} 18.
Qd2 {[%clk 00:02:25]} {[%emt 00:01:07]} Rh8 {[%clk 00:01:43]} {[%emt 00:06:07]}
19. f3 {[%clk 00:02:41]} {[%emt 00:00:15]} Ne5 {[%clk 00:01:51]} {[%emt
00:00:22]} 20. O-O-O {[%clk 00:02:38]} {[%emt 00:00:33]} Bd7 {[%clk 00:01:28]}
{[%emt 00:00:53]} 21. Qd4 {[%clk 00:01:52]} {[%emt 00:01:13]} Rac8 {[%clk
00:01:10]} {[%emt 00:00:50]} 22. Nf4+ {[%clk 00:01:22]} {[%emt 00:01:00]} Kf6
{[%clk 00:01:32]} {[%emt 00:00:07]} 23. g4 {[%clk 00:01:27]} {[%emt 00:00:25]}
Rc4 {[%clk 00:01:41]} {[%emt 00:00:21]} 24. Qd2 {[%clk 00:01:29]} {[%emt
00:00:29]} Qc5 {[%clk 00:01:02]} {[%emt 00:01:09]} 25. Nd3 {[%clk 00:00:41]}
{[%emt 00:01:18]} Nxd3+ {[%clk 00:01:06]} {[%emt 00:00:26]} 26. Qxd3 {[%clk
00:01:10]} {[%emt 00:00:01]} Rc8 {[%clk 00:01:13]} {[%emt 00:00:23]} 27. Rh2
{[%clk 00:01:29]} {[%emt 00:00:10]} d4 {[%clk 00:00:55]} {[%emt 00:00:48]} 28.
Re2 {[%clk 00:01:28]} {[%emt 00:00:32]} Nd5 {[%clk 00:01:10]} {[%emt 00:00:15]}
29. gxf5 {[%clk 00:01:24]} {[%emt 00:00:34]} Bxf5 {[%clk 00:01:24]} {[%emt
00:00:15]} 30. Ne4+ {[%clk 00:01:50]} {[%emt 00:00:04]} Bxe4 {[%clk 00:01:42]}
{[%emt 00:00:13]} 31. Qxe4 {[%clk 00:02:15]} {[%emt 00:00:06]} Ne3 {[%clk
00:01:46]} {[%emt 00:00:25]} 32. Rdd2 {[%clk 00:01:52]} {[%emt 00:00:53]} Qf5
{[%clk 00:01:36]} {[%emt 00:00:40]} 33. Rxe3 {[%clk 00:00:56]} {[%emt
00:01:27]} Rxc2+ {[%clk 00:00:51]} {[%emt 00:01:14]} 34. Rxc2 {[%clk 00:01:14]}
{[%emt 00:00:12]} Rxc2+ {[%clk 00:01:19]} {[%emt 00:00:02]} 35. Qxc2 {[%clk
00:01:38]} {[%emt 00:00:07]} dxe3 {[%clk 00:00:34]} {[%emt 00:01:15]} 36. Qxf5+
{[%clk 00:01:12]} {[%emt 00:00:55]} Kxf5 {[%clk 00:01:03]} 37. Kd1 {[%clk
00:01:38]} {[%emt 00:00:05]} Kf4 {[%clk 00:00:37]} {[%emt 00:00:55]} 38. Ke2
{[%clk 00:02:05]} {[%emt 00:00:04]} g6 {[%clk 00:00:37]} {[%emt 00:00:30]} 39.
b3 {[%clk 00:02:04]} {[%emt 00:00:30]} b6 {[%clk 00:00:46]} {[%emt 00:00:22]}
40. b4 {[%clk 00:00:44]} {[%emt 00:01:50]} b5 {[%clk 00:01:03]} {[%emt
00:00:12]} 41. Ke1 {[%clk 00:29:25]} {[%emt 00:01:49]} Kxf3 {[%clk 00:30:05]}
{[%emt 00:01:29]} 0-1

[Event "Top 12 Féminin 2026"]
[Site "Asnières-sur-Seine, France"]
[Date "2026.05.15"]
[Round "3.15"]
[White "Barbotte, Jeanne"]
[Black "Auvray, Honorine"]
[Result "0-1"]
[TimeControl "1h30 / 40 moves + 30m + 30sec/move"]
[WhiteTitle "-"]
[BlackTitle "WFM"]
[WhiteFideId "-"]
[BlackFideId "-"]
[WhiteElo "1860"]
[BlackElo "2025"]

1. e4 {[%clk 01:30:36]} {[%emt 00:00:23]} c5 {[%clk 01:30:49]} {[%emt
00:00:10]} 2. Nf3 {[%clk 01:30:57]} {[%emt 00:00:11]} Nc6 {[%clk 01:31:02]}
{[%emt 00:00:17]} 3. Bb5 {[%clk 01:31:20]} {[%emt 00:00:07]} e6 {[%clk
01:31:09]} {[%emt 00:00:23]} 4. O-O {[%clk 01:31:35]} {[%emt 00:00:15]} Nge7
{[%clk 01:31:08]} {[%emt 00:00:31]} 5. Re1 {[%clk 01:31:44]} {[%emt 00:00:21]}
h6 {[%clk 01:31:12]} {[%emt 00:00:26]} 6. d4 {[%clk 01:23:19]} {[%emt
00:08:55]} cxd4 {[%clk 01:19:55]} {[%emt 00:11:47]} 7. Nxd4 {[%clk 01:21:15]}
{[%emt 00:02:35]} Qb6 {[%clk 01:16:22]} {[%emt 00:04:03]} 8. Bxc6 {[%clk
01:17:52]} {[%emt 00:03:53]} Nxc6 {[%clk 01:08:49]} {[%emt 00:08:03]} 9. Nb3
{[%clk 01:10:28]} {[%emt 00:07:55]} d6 {[%clk 00:53:54]} {[%emt 00:15:25]} 10.
Be3 {[%clk 01:08:31]} {[%emt 00:02:28]} Qc7 {[%clk 00:51:40]} {[%emt 00:02:43]}
11. Nc3 {[%clk 00:59:34]} {[%emt 00:09:27]} Be7 {[%clk 00:50:07]} {[%emt
00:02:02]} 12. Qg4 {[%clk 00:54:52]} {[%emt 00:05:12]} g6 {[%clk 00:43:22]}
{[%emt 00:07:15]} 13. Rad1 {[%clk 00:43:47]} {[%emt 00:11:35]} Ne5 {[%clk
00:35:18]} {[%emt 00:08:33]} 14. Qe2 {[%clk 00:42:24]} {[%emt 00:01:52]} Bd7
{[%clk 00:33:46]} {[%emt 00:02:02]} 15. Nd4 {[%clk 00:24:58]} {[%emt 00:17:57]}
a6 {[%clk 00:31:42]} {[%emt 00:02:34]} 16. f4 {[%clk 00:17:25]} {[%emt
00:08:03]} Nc4 {[%clk 00:28:55]} {[%emt 00:03:17]} 17. Bc1 {[%clk 00:17:50]}
{[%emt 00:00:05]} b5 {[%clk 00:25:36]} {[%emt 00:03:48]} 18. Qd3 {[%clk
00:15:20]} {[%emt 00:03:00]} b4 {[%clk 00:18:54]} {[%emt 00:07:12]} 19. Nce2
{[%clk 00:15:34]} {[%emt 00:00:16]} e5 {[%clk 00:18:11]} {[%emt 00:01:13]} 20.
Nf3 {[%clk 00:07:36]} {[%emt 00:08:28]} Bb5 {[%clk 00:17:27]} {[%emt 00:01:12]}
21. Qd5 {[%clk 00:03:31]} {[%emt 00:04:36]} Rc8 {[%clk 00:16:01]} {[%emt
00:01:55]} 22. c3 {[%clk 00:02:26]} {[%emt 00:01:35]} Qa7+ {[%clk 00:15:00]}
{[%emt 00:01:32]} 23. Kh1 {[%clk 00:02:48]} {[%emt 00:00:08]} Rc5 {[%clk
00:15:11]} {[%emt 00:00:18]} 24. Qd3 {[%clk 00:02:13]} {[%emt 00:01:05]} Nxb2
{[%clk 00:15:15]} {[%emt 00:00:26]} 25. Qc2 {[%clk 00:02:26]} {[%emt 00:00:17]}
Nxd1 {[%clk 00:15:20]} {[%emt 00:00:25]} 26. Rxd1 {[%clk 00:02:26]} {[%emt
00:00:30]} Qc7 {[%clk 00:14:12]} {[%emt 00:01:37]} 27. Be3 {[%clk 00:02:17]}
{[%emt 00:00:40]} Bxe2 {[%clk 00:11:52]} {[%emt 00:02:50]} 28. Qxe2 {[%clk
00:02:44]} {[%emt 00:00:03]} Rxc3 {[%clk 00:11:03]} {[%emt 00:01:19]} 29. Bd2
{[%clk 00:02:22]} {[%emt 00:00:52]} Rc6 {[%clk 00:08:48]} {[%emt 00:02:45]} 30.
Bxb4 {[%clk 00:01:15]} {[%emt 00:01:37]} O-O {[%clk 00:07:48]} {[%emt
00:01:30]} 31. Bd2 {[%clk 00:01:20]} {[%emt 00:00:25]} Kg7 {[%clk 00:06:19]}
{[%emt 00:01:58]} 32. fxe5 {[%clk 00:01:10]} {[%emt 00:00:41]} dxe5 {[%clk
00:06:32]} {[%emt 00:00:17]} 33. Qe3 {[%clk 00:01:30]} {[%emt 00:00:09]} g5
{[%clk 00:06:22]} {[%emt 00:00:41]} 34. h4 {[%clk 00:01:45]} {[%emt 00:00:15]}
g4 {[%clk 00:06:29]} {[%emt 00:00:22]} 35. Nh2 {[%clk 00:01:47]} {[%emt
00:00:29]} h5 {[%clk 00:04:00]} {[%emt 00:02:59]} 36. Rf1 {[%clk 00:01:55]}
{[%emt 00:00:21]} Bxh4 {[%clk 00:03:05]} {[%emt 00:01:25]} 37. Rf5 {[%clk
00:02:22]} {[%emt 00:00:04]} Rh8 {[%clk 00:03:16]} {[%emt 00:00:19]} 38. g3
{[%clk 00:02:02]} {[%emt 00:00:49]} Be7 {[%clk 00:02:38]} {[%emt 00:01:05]} 39.
Qf2 {[%clk 00:01:51]} {[%emt 00:00:45]} Bc5 {[%clk 00:02:47]} {[%emt 00:00:21]}
40. Qe2 {[%clk 00:02:06]} {[%emt 00:00:15]} Be7 {[%clk 00:02:26]} {[%emt
00:00:51]} 41. Nf1 {[%clk 00:01:24]} {[%emt 00:01:12]} Rf6 {[%clk 00:21:21]}
{[%emt 00:11:34]} 42. Ne3 {[%clk 00:28:39]} {[%emt 00:03:16]} Qc5 {[%clk
00:15:01]} {[%emt 00:06:49]} 43. Rxf6 {[%clk 00:21:58]} {[%emt 00:07:11]} Bxf6
{[%clk 00:15:13]} {[%emt 00:00:19]} 44. Qxa6 {[%clk 00:21:41]} {[%emt
00:00:47]} Rb8 {[%clk 00:13:34]} {[%emt 00:02:08]} 45. Qd3 {[%clk 00:15:20]}
{[%emt 00:06:52]} Kg6 {[%clk 00:11:56]} {[%emt 00:02:07]} 46. Qf1 {[%clk
00:14:41]} {[%emt 00:01:09]} Qd4 {[%clk 00:10:37]} {[%emt 00:01:49]} 47. Qf5+
{[%clk 00:05:05]} {[%emt 00:10:07]} Kg7 {[%clk 00:10:50]} {[%emt 00:00:16]} 48.
Nf1 {[%clk 00:05:21]} {[%emt 00:00:15]} Be7 {[%clk 00:06:59]} {[%emt 00:04:21]}
49. Be3 {[%clk 00:03:30]} {[%emt 00:02:21]} Qa1 {[%clk 00:06:59]} {[%emt
00:00:30]} 50. Kg2 {[%clk 00:01:08]} {[%emt 00:02:53]} Rb2+ {[%clk 00:04:58]}
{[%emt 00:02:31]} 51. Nd2 {[%clk 00:01:25]} {[%emt 00:00:12]} Rxa2 {[%clk
00:02:04]} {[%emt 00:03:24]} 52. Qxh5 {[%clk 00:01:47]} {[%emt 00:00:07]} Qd1
{[%clk 00:01:05]} {[%emt 00:01:29]} 53. Qxe5+ {[%clk 00:01:57]} {[%emt
00:00:21]} Kh7 {[%clk 00:01:00]} {[%emt 00:00:35]} 54. Qh5+ {[%clk 00:02:13]}
{[%emt 00:00:13]} Kg8 {[%clk 00:01:23]} {[%emt 00:00:07]} 55. Qf5 {[%clk
00:02:19]} {[%emt 00:00:24]} Rxd2+ {[%clk 00:01:43]} {[%emt 00:00:10]} 0-1

[Event "Top 12 Féminin 2026"]
[Site "Asnières-sur-Seine, France"]
[Date "2026.05.15"]
[Round "3.16"]
[White "Grimault, Leane"]
[Black "Carnet, Anaelle"]
[Result "1/2-1/2"]
[TimeControl "1h30 / 40 moves + 30m + 30sec/move"]
[WhiteTitle "-"]
[BlackTitle "-"]
[WhiteFideId "-"]
[BlackFideId "-"]
[WhiteElo "1932"]
[BlackElo "1786"]

1. Nf3 {[%clk 01:30:55]} {[%emt 00:00:04]} d5 {[%clk 01:30:55]} {[%emt
00:00:05]} 2. e3 {[%clk 01:31:15]} {[%emt 00:00:11]} e6 {[%clk 01:31:15]}
{[%emt 00:00:11]} 3. c4 {[%clk 01:31:26]} {[%emt 00:00:18]} Nf6 {[%clk
01:31:38]} {[%emt 00:00:07]} 4. b3 {[%clk 01:30:06]} {[%emt 00:01:50]} Be7
{[%clk 01:31:59]} {[%emt 00:00:09]} 5. Bb2 {[%clk 01:30:28]} {[%emt 00:00:08]}
O-O {[%clk 01:32:21]} {[%emt 00:00:08]} 6. Nc3 {[%clk 01:30:23]} {[%emt
00:00:34]} a6 {[%clk 01:31:24]} {[%emt 00:01:28]} 7. Be2 {[%clk 01:28:15]}
{[%emt 00:02:38]} dxc4 {[%clk 01:31:01]} {[%emt 00:00:53]} 8. bxc4 {[%clk
01:27:18]} {[%emt 00:01:27]} c5 {[%clk 01:30:16]} {[%emt 00:01:15]} 9. O-O
{[%emt 00:03:20]} Nc6 {[%clk 01:27:58]} {[%emt 00:02:42]} 10. a3 {[%clk
01:20:51]} {[%emt 00:04:13]} e5 {[%clk 01:27:57]} {[%emt 00:00:30]} 11. Qc2
{[%clk 01:15:18]} {[%emt 00:06:03]} h6 {[%clk 01:27:32]} {[%emt 00:00:55]} 12.
Rfd1 {[%clk 01:12:33]} {[%emt 00:03:15]} Be6 {[%clk 01:27:15]} {[%emt
00:00:47]} 13. Rab1 {[%clk 01:08:32]} {[%emt 00:04:31]} Rb8 {[%clk 01:21:05]}
{[%emt 00:06:39]} 14. Na4 {[%clk 00:58:35]} {[%emt 00:10:27]} Qc7 {[%clk
01:13:46]} {[%emt 00:07:49]} 15. d4 {[%clk 00:50:09]} {[%emt 00:08:56]} exd4
{[%clk 01:04:34]} {[%emt 00:09:42]} 16. exd4 {[%clk 00:50:27]} {[%emt
00:00:13]} Nxd4 {[%clk 01:02:37]} {[%emt 00:02:26]} 17. Nxd4 {[%clk 00:50:18]}
{[%emt 00:00:40]} cxd4 {[%clk 01:02:59]} {[%emt 00:00:08]} 18. Bxd4 {[%clk
00:49:59]} {[%emt 00:00:49]} b5 {[%clk 00:58:01]} {[%emt 00:05:28]} 19. Nb2
{[%clk 00:47:17]} {[%emt 00:03:12]} Rfc8 {[%clk 00:53:27]} {[%emt 00:05:04]} 20.
Qc3 {[%clk 00:43:11]} {[%emt 00:04:36]} b4 {[%clk 00:32:38]} {[%emt 00:21:19]}
21. axb4 {[%clk 00:41:52]} {[%emt 00:01:50]} Bxb4 {[%clk 00:32:16]} {[%emt
00:00:51]} 22. Qe3 {[%clk 00:39:15]} {[%emt 00:03:07]} Qe7 {[%clk 00:30:25]}
{[%emt 00:02:21]} 23. h3 {[%clk 00:22:30]} {[%emt 00:17:15]} Bc5 {[%clk
00:23:50]} {[%emt 00:07:06]} 24. Bxc5 {[%clk 00:16:24]} {[%emt 00:06:37]} Rxc5
{[%clk 00:23:02]} {[%emt 00:01:17]} 25. Na4 {[%clk 00:14:54]} {[%emt 00:02:00]}
Rxb1 {[%clk 00:15:53]} {[%emt 00:07:39]} 26. Rxb1 {[%clk 00:15:18]} {[%emt
00:00:05]} Rc7 {[%clk 00:16:11]} {[%emt 00:00:11]} 27. Bd3 {[%clk 00:12:44]}
{[%emt 00:03:05]} Rc8 {[%clk 00:11:00]} {[%emt 00:05:41]} 28. c5 {[%clk
00:09:41]} {[%emt 00:03:33]} a5 {[%clk 00:09:15]} {[%emt 00:02:15]} 29. Nb6
{[%clk 00:09:02]} {[%emt 00:01:09]} Rxc5 {[%clk 00:07:13]} {[%emt 00:02:32]} 30.
Nc4 {[%clk 00:06:54]} {[%emt 00:02:38]} Qc7 {[%clk 00:05:38]} {[%emt 00:02:04]}
31. Na3 {[%clk 00:05:02]} {[%emt 00:02:23]} Nd5 {[%clk 00:03:28]} {[%emt
00:02:39]} 32. Qd2 {[%clk 00:02:33]} {[%emt 00:02:59]} Nb4 {[%clk 00:03:18]}
{[%emt 00:00:41]} 33. Be4 {[%clk 00:02:26]} {[%emt 00:00:37]} Qc8 {[%clk
00:02:09]} {[%emt 00:01:39]} 34. Rd1 {[%clk 00:02:31]} {[%emt 00:00:25]} Bf5
{[%clk 00:01:36]} {[%emt 00:01:03]} 35. Bf3 {[%clk 00:01:39]} {[%emt 00:01:21]}
Bg6 {[%clk 00:01:30]} {[%emt 00:00:37]} 36. Bg4 {[%clk 00:01:36]} {[%emt
00:00:32]} Qc7 {[%clk 00:01:31]} {[%emt 00:00:28]} 37. Qe3 {[%clk 00:01:21]}
{[%emt 00:00:47]} Re5 {[%clk 00:01:18]} {[%emt 00:00:42]} 38. Qg3 {[%clk
00:01:20]} {[%emt 00:00:30]} Qe7 {[%clk 00:01:12]} {[%emt 00:00:37]} 39. Qc3
{[%clk 00:01:23]} {[%emt 00:00:27]} Kh7 {[%clk 00:00:54]} {[%emt 00:00:48]} 40.
Nc4 {[%clk 00:01:00]} {[%emt 00:00:53]} Rc5 {[%clk 00:00:33]} {[%emt 00:00:51]}
41. Rd7 {[%clk 00:20:35]} {[%emt 00:10:54]} Qg5 {[%clk 00:27:05]} {[%emt
00:03:55]} 42. Bf3 {[%clk 00:17:18]} {[%emt 00:03:51]} Qf4 {[%clk 00:22:01]}
{[%emt 00:05:33]} 43. Rd4 {[%clk 00:16:40]} {[%emt 00:01:08]} Qf6 {[%clk
00:20:43]} {[%emt 00:01:48]} 44. Qd2 {[%clk 00:15:39]} {[%emt 00:01:32]} Qe6
{[%clk 00:16:56]} {[%emt 00:04:15]} 45. Nxa5 {[%clk 00:09:14]} {[%emt
00:06:59]} Rxa5 {[%clk 00:13:52]} {[%emt 00:03:33]} 46. Rxb4 {[%clk 00:03:35]}
{[%emt 00:06:08]} Ra1+ {[%clk 00:11:13]} {[%emt 00:03:09]} 47. Kh2 {[%clk
00:03:29]} {[%emt 00:00:36]} Ra2 {[%clk 00:07:19]} {[%emt 00:04:24]} 48. Qd4
{[%clk 00:03:00]} {[%emt 00:00:58]} Rxf2 {[%clk 00:03:08]} {[%emt 00:04:42]} 49.
Qxf2 {[%clk 00:01:16]} {[%emt 00:02:14]} Qd6+ {[%clk 00:03:30]} {[%emt
00:00:07]} 50. Kg1 {[%clk 00:01:29]} {[%emt 00:00:17]} Qxb4 {[%clk 00:03:55]}
{[%emt 00:00:06]} 51. Bd5 {[%clk 00:01:38]} {[%emt 00:00:21]} Qe7 {[%clk
00:03:27]} {[%emt 00:00:58]} 52. Bc4 {[%clk 00:01:21]} {[%emt 00:00:48]} Qc7
{[%clk 00:03:25]} {[%emt 00:00:31]} 53. Bd5 {[%clk 00:01:23]} {[%emt 00:00:29]}
f6 {[%clk 00:02:17]} {[%emt 00:01:37]} 54. Qa2 {[%clk 00:00:54]} {[%emt
00:01:00]} Qc8 {[%clk 00:01:47]} {[%emt 00:01:00]} 55. Be6 {[%clk 00:00:52]}
{[%emt 00:00:32]} Qd8 {[%clk 00:01:28]} {[%emt 00:00:47]} 56. Qc4 {[%clk
00:00:55]} {[%emt 00:00:28]} Qb8 {[%clk 00:01:16]} {[%emt 00:00:41]} 57. Qd5
{[%clk 00:00:52]} {[%emt 00:00:34]} Qe8 {[%clk 00:01:15]} {[%emt 00:00:30]} 58.
Qc4 {[%clk 00:00:48]} {[%emt 00:00:35]} Qd8 {[%clk 00:01:25]} {[%emt 00:00:20]}
59. Bd5 {[%clk 00:00:54]} {[%emt 00:00:24]} Qe8 {[%clk 00:01:26]} {[%emt
00:00:27]} 60. Be6 {[%clk 00:01:12]} {[%emt 00:00:13]} Qa8 {[%clk 00:01:17]}
{[%emt 00:00:36]} 61. Bd5 {[%clk 00:01:23]} {[%emt 00:00:22]} Qa1+ {[%clk
00:01:05]} {[%emt 00:00:41]} 62. Kh2 {[%clk 00:01:48]} {[%emt 00:00:05]} Qe5+
{[%clk 00:01:20]} {[%emt 00:00:15]} 63. Kg1 {[%clk 00:02:10]} {[%emt 00:00:09]}
f5 {[%clk 00:00:47]} {[%emt 00:01:02]} 64. Bg8+ {[%clk 00:02:20]} {[%emt
00:00:20]} Kh8 {[%clk 00:01:04]} {[%emt 00:00:13]} 65. Be6 {[%clk 00:02:32]}
{[%emt 00:00:19]} Qe1+ {[%clk 00:00:53]} {[%emt 00:00:41]} 66. Kh2 {[%clk
00:02:50]} {[%emt 00:00:11]} Qe5+ {[%clk 00:01:14]} {[%emt 00:00:08]} 67. Kg1
{[%clk 00:03:14]} {[%emt 00:00:07]} Qe1+ {[%clk 00:01:31]} {[%emt 00:00:14]} 68.
Kh2 {[%clk 00:03:39]} {[%emt 00:00:05]} Qe5+ {[%clk 00:01:49]} {[%emt
00:00:12]} 1/2-1/2